[Event "December 19 Early 2023"]
[Site "https://www.chess.com"]
[Date "2023.12.19"]
[Round "4"]
[White "Schmakel, Sam"]
[Black "Han, Yichen"]
[Result "0-1"]
[Board "68"]
[TimeControl "180+1"]
[WhiteFideId "2039311"]
[BlackFideId "1054430"]
[WhiteElo "2356"]
[BlackElo "2305"]
[WhiteTeam "USA"]
[BlackTeam "NED"]
[WhiteClock "0:00:00"]
[BlackClock "0:00:01"]

1. e4 {[%clk 0:03:00]}  c5 {[%clk 0:02:58]} 2. Nc3 {[%clk 0:02:58]}  Nc6 {[%clk 0:02:57]} 3. f4 {[%clk 0:02:57]}  g6 {[%clk 0:02:56]} 4. Nf3 {[%clk 0:02:53]}  Bg7 {[%clk 0:02:56]} 5. Bc4 {[%clk 0:02:53]}  e6 {[%clk 0:02:56]} 6. d3 {[%clk 0:02:50]}  Nge7 {[%clk 0:02:56]} 7. O-O {[%clk 0:02:47]}  d5 {[%clk 0:02:55]} 8. Bb5 {[%clk 0:02:43]}  O-O {[%clk 0:02:55]} 9. Bxc6 {[%clk 0:02:19]}  Nxc6 {[%clk 0:02:54]} 10. Qe1 {[%clk 0:02:20]}  Nd4 {[%clk 0:02:51]} 11. Qf2 {[%clk 0:02:12]}  b5 {[%clk 0:02:51]} 12. exd5 {[%clk 0:02:02]}  exd5 {[%clk 0:02:45]} 13. Be3 {[%clk 0:01:59]}  Nxf3+ {[%clk 0:02:42]} 14. Qxf3 {[%clk 0:01:59]}  b4 {[%clk 0:01:47]} 15. Qxd5 {[%clk 0:01:31]}  Be6 {[%clk 0:01:25]} 16. Qxd8 {[%clk 0:01:30]}  Rfxd8 {[%clk 0:01:26]} 17. Ne4 {[%clk 0:01:30]}  c4 {[%clk 0:01:15]} 18. Nc5 {[%clk 0:01:05]}  cxd3 {[%clk 0:01:07]} 19. Nxd3 {[%clk 0:00:59]}  Bc4 {[%clk 0:01:07]} 20. Rad1 {[%clk 0:00:54]}  Bxd3 {[%clk 0:01:00]} 21. cxd3 {[%clk 0:00:53]}  Bxb2 {[%clk 0:01:00]} 22. d4 {[%clk 0:00:31]}  Rd5 {[%clk 0:00:58]} 23. Rd2 {[%clk 0:00:28]}  Bc3 {[%clk 0:00:57]} 24. Rd3 {[%clk 0:00:28]}  Rad8 {[%clk 0:00:53]} 25. Rfd1 {[%clk 0:00:28]}  Kg7 {[%clk 0:00:44]} 26. Kf2 {[%clk 0:00:29]}  Kf6 {[%clk 0:00:44]} 27. Kf3 {[%clk 0:00:29]}  Ke6 {[%clk 0:00:44]} 28. g4 {[%clk 0:00:29]}  Ra5 {[%clk 0:00:41]} 29. Bd2 {[%clk 0:00:22]}  Ra3 {[%clk 0:00:12]} 30. Bxc3 {[%clk 0:00:16]}  Rxc3 {[%clk 0:00:13]} 31. Rxc3 {[%clk 0:00:07]}  bxc3 {[%clk 0:00:13]} 32. Ke4 {[%clk 0:00:06]}  Rb8 {[%clk 0:00:10]} 33. Rc1 {[%clk 0:00:02]}  Rb2 {[%clk 0:00:08]} 34. Rxc3 {[%clk 0:00:03]}  Re2+ {[%clk 0:00:08]} 35. Kd3 {[%clk 0:00:03]}  Rxh2 {[%clk 0:00:04]} 36. Rc6+ {[%clk 0:00:02]}  Kd5 {[%clk 0:00:03]} 37. Rc5+ {[%clk 0:00:02]}  Kd6 {[%clk 0:00:02]} 38. Ra5 {[%clk 0:00:00]}  Rh4 {[%clk 0:00:01]} 0-1

[Event "December 19 Early 2023"]
[Site "https://www.chess.com"]
[Date "2023.12.19"]
[Round "4"]
[White "Javakhadze, Zurab"]
[Black "Deng, Henry"]
[Result "1-0"]
[Board "70"]
[TimeControl "180+1"]
[WhiteFideId "13603647"]
[BlackFideId "30965454"]
[WhiteElo "2374"]
[BlackElo "2566"]
[WhiteTeam "GEO"]
[BlackTeam "USA"]
[WhiteClock "0:01:14"]
[BlackClock "0:00:39"]

1. Nf3 {[%clk 0:03:00]}  d5 {[%clk 0:02:59]} 2. g3 {[%clk 0:03:00]}  Nf6 {[%clk 0:02:58]} 3. Bg2 {[%clk 0:03:00]}  c5 {[%clk 0:02:58]} 4. O-O {[%clk 0:03:00]}  Nc6 {[%clk 0:02:59]} 5. d4 {[%clk 0:03:00]}  e6 {[%clk 0:02:58]} 6. c4 {[%clk 0:03:00]}  dxc4 {[%clk 0:02:58]} 7. Ne5 {[%clk 0:03:00]}  Bd7 {[%clk 0:02:57]} 8. Na3 {[%clk 0:03:00]}  cxd4 {[%clk 0:02:57]} 9. Naxc4 {[%clk 0:03:00]}  Be7 {[%clk 0:02:57]} 10. Qb3 {[%clk 0:02:56]}  Rb8 {[%clk 0:02:46]} 11. Bf4 {[%clk 0:02:53]}  Rc8 {[%clk 0:02:17]} 12. Qxb7 {[%clk 0:02:35]}  Nxe5 {[%clk 0:02:11]} 13. Nxe5 {[%clk 0:02:32]}  O-O {[%clk 0:02:08]} 14. Qxa7 {[%clk 0:02:19]}  Bc5 {[%clk 0:02:04]} 15. Qa6 {[%clk 0:02:17]}  Qe8 {[%clk 0:01:43]} 16. Nxd7 {[%clk 0:02:09]}  Qxd7 {[%clk 0:01:44]} 17. Rfd1 {[%clk 0:02:04]}  Nd5 {[%clk 0:01:36]} 18. Be5 {[%clk 0:01:57]}  Nb4 {[%clk 0:00:55]} 19. Qb7 {[%clk 0:01:46]}  Qxb7 {[%clk 0:00:52]} 20. Bxb7 {[%clk 0:01:47]}  Rcd8 {[%clk 0:00:52]} 21. a3 {[%clk 0:01:46]}  Nd5 {[%clk 0:00:45]} 22. Bxd4 {[%clk 0:01:39]}  Bxd4 {[%clk 0:00:42]} 23. Rxd4 {[%clk 0:01:38]}  Nb6 {[%clk 0:00:42]} 24. Rxd8 {[%clk 0:01:37]}  Rxd8 {[%clk 0:00:43]} 25. a4 {[%clk 0:01:28]}  Nc4 {[%clk 0:00:41]} 26. a5 {[%clk 0:01:25]}  g5 {[%clk 0:00:38]} 27. a6 {[%clk 0:01:25]}  Nd6 {[%clk 0:00:38]} 28. Bc6 {[%clk 0:01:22]}  Nc8 {[%clk 0:00:37]} 29. a7 {[%clk 0:01:19]}  Nxa7 {[%clk 0:00:37]} 30. Rxa7 {[%clk 0:01:20]}  Rd1+ {[%clk 0:00:38]} 31. Kg2 {[%clk 0:01:20]}  Rd2 {[%clk 0:00:39]} 32. Be8 {[%clk 0:01:19]}  f5 {[%clk 0:00:39]} 33. Bf7+ {[%clk 0:01:19]}  Kg7 {[%clk 0:00:39]} 34. Bxe6+ {[%clk 0:01:20]}  Kf6 {[%clk 0:00:40]} 35. Bc4 {[%clk 0:01:16]}  Rxb2 {[%clk 0:00:40]} 36. Ra6+ {[%clk 0:01:16]}  Ke5 {[%clk 0:00:39]} 37. e3 {[%clk 0:01:14]}  h5 {[%clk 0:00:39]} 38. Re6# {[%clk 0:01:14]} 1-0

[Event "December 19 Early 2023"]
[Site "https://www.chess.com"]
[Date "2023.12.19"]
[Round "4"]
[White "Weetik, Vjacheslav"]
[Black "Koutlas, Nikolaos"]
[Result "1-0"]
[Board "71"]
[TimeControl "180+1"]
[WhiteFideId "4153472"]
[BlackFideId "25827138"]
[WhiteElo "2469"]
[BlackElo "2215"]
[WhiteTeam "RUS"]
[BlackTeam "GRE"]
[WhiteClock "0:00:10"]
[BlackClock "0:01:13"]

1. e4 {[%clk 0:02:56]}  c5 {[%clk 0:02:49]} 2. Nf3 {[%clk 0:02:56]}  Nc6 {[%clk 0:02:49]} 3. Bb5 {[%clk 0:02:56]}  h6 {[%clk 0:02:49]} 4. c3 {[%clk 0:02:54]}  g5 {[%clk 0:02:49]} 5. h3 {[%clk 0:02:47]}  Bg7 {[%clk 0:02:48]} 6. d4 {[%clk 0:02:47]}  cxd4 {[%clk 0:02:48]} 7. cxd4 {[%clk 0:02:48]}  d5 {[%clk 0:02:47]} 8. exd5 {[%clk 0:02:47]}  Qxd5 {[%clk 0:02:44]} 9. Nc3 {[%clk 0:02:48]}  Qe6+ {[%clk 0:02:41]} 10. Be3 {[%clk 0:02:48]}  Qf5 {[%clk 0:02:30]} 11. d5 {[%clk 0:02:44]}  a6 {[%clk 0:02:24]} 12. dxc6 {[%clk 0:02:01]}  axb5 {[%clk 0:02:23]} 13. Nd5 {[%clk 0:02:01]}  Be5 {[%clk 0:02:03]} 14. Nb6 {[%clk 0:01:17]}  Rb8 {[%clk 0:01:42]} 15. O-O {[%clk 0:01:17]}  Nf6 {[%clk 0:01:38]} 16. Nxe5 {[%clk 0:01:09]}  Qxe5 {[%clk 0:01:38]} 17. Bd4 {[%clk 0:00:56]}  Qc7 {[%clk 0:01:38]} 18. Bxf6 {[%clk 0:00:46]}  exf6 {[%clk 0:01:39]} 19. Nd5 {[%clk 0:00:39]}  Qxc6 {[%clk 0:01:36]} 20. Rc1 {[%clk 0:00:39]}  Qd6 {[%clk 0:01:29]} 21. Nc7+ {[%clk 0:00:28]}  Kd7 {[%clk 0:01:29]} 22. Qb3 {[%clk 0:00:14]}  Ke7 {[%clk 0:01:17]} 23. Rfd1 {[%clk 0:00:11]}  Qf4 {[%clk 0:01:12]} 24. Nd5+ {[%clk 0:00:11]}  Kf8 {[%clk 0:01:12]} 25. Nxf4 {[%clk 0:00:10]}  gxf4 {[%clk 0:01:13]} 1-0

[Event "December 19 Early 2023"]
[Site "https://www.chess.com"]
[Date "2023.12.19"]
[Round "4"]
[White "Tifferet, Shakked"]
[Black "Starozhilov, Leonid"]
[Result "0-1"]
[Board "73"]
[TimeControl "180+1"]
[WhiteFideId "2811529"]
[BlackFideId "14106752"]
[WhiteElo "2142"]
[BlackElo "2246"]
[WhiteTeam "ISR"]
[BlackTeam "UKR"]
[WhiteClock "0:00:01"]
[BlackClock "0:00:47"]

1. e4 {[%clk 0:03:00]}  c5 {[%clk 0:03:00]} 2. Nf3 {[%clk 0:03:00]}  e6 {[%clk 0:03:00]} 3. b3 {[%clk 0:03:00]}  b6 {[%clk 0:02:58]} 4. Bb2 {[%clk 0:02:59]}  Bb7 {[%clk 0:02:59]} 5. Bd3 {[%clk 0:03:00]}  d6 {[%clk 0:02:58]} 6. O-O {[%clk 0:02:58]}  Nd7 {[%clk 0:02:58]} 7. Re1 {[%clk 0:02:53]}  Ngf6 {[%clk 0:02:58]} 8. Nc3 {[%clk 0:02:49]}  Be7 {[%clk 0:02:54]} 9. a4 {[%clk 0:02:42]}  a6 {[%clk 0:02:54]} 10. e5 {[%clk 0:02:34]}  Bxf3 {[%clk 0:02:41]} 11. Qxf3 {[%clk 0:02:19]}  Nxe5 {[%clk 0:02:42]} 12. Rxe5 {[%clk 0:01:19]}  dxe5 {[%clk 0:02:40]} 13. Ne4 {[%clk 0:01:17]}  Nxe4 {[%clk 0:02:26]} 14. Qxe4 {[%clk 0:01:15]}  Bf6 {[%clk 0:02:17]} 15. Qc6+ {[%clk 0:01:08]}  Kf8 {[%clk 0:02:14]} 16. a5 {[%clk 0:01:08]}  bxa5 {[%clk 0:02:07]} 17. Qxc5+ {[%clk 0:00:59]}  Kg8 {[%clk 0:02:07]} 18. Rxa5 {[%clk 0:00:50]}  Rc8 {[%clk 0:02:00]} 19. Qb4 {[%clk 0:00:31]}  Rb8 {[%clk 0:01:46]} 20. Qa4 {[%clk 0:00:25]}  e4 {[%clk 0:01:38]} 21. Bxf6 {[%clk 0:00:22]}  gxf6 {[%clk 0:01:31]} 22. Bxe4 {[%clk 0:00:18]}  Qxd2 {[%clk 0:01:29]} 23. Qa1 {[%clk 0:00:16]}  Kg7 {[%clk 0:01:19]} 24. h4 {[%clk 0:00:15]}  Rhd8 {[%clk 0:01:17]} 25. Rg5+ {[%clk 0:00:15]}  Kf8 {[%clk 0:00:57]} 26. Qxf6 {[%clk 0:00:16]}  Qd1+ {[%clk 0:00:57]} 27. Kh2 {[%clk 0:00:16]}  Qd4 {[%clk 0:00:58]} 28. Qf3 {[%clk 0:00:06]}  Ke7 {[%clk 0:00:55]} 29. Bxh7 {[%clk 0:00:06]}  Qxh4+ {[%clk 0:00:55]} 30. Qh3 {[%clk 0:00:03]}  Qxg5 {[%clk 0:00:55]} 31. Be4 {[%clk 0:00:02]}  Rh8 {[%clk 0:00:55]} 32. Bh7 {[%clk 0:00:02]}  Rxh7 {[%clk 0:00:48]} 33. Qxh7 {[%clk 0:00:01]}  Qe5+ {[%clk 0:00:49]} 34. Kg1 {[%clk 0:00:02]}  Rh8 {[%clk 0:00:48]} 35. Qxh8 {[%clk 0:00:01]}  Qxh8 {[%clk 0:00:47]} 0-1

[Event "December 19 Early 2023"]
[Site "https://www.chess.com"]
[Date "2023.12.19"]
[Round "4"]
[White "Liyanage, Ranindu Dilshan"]
[Black "Shuvalov, Evgenij"]
[Result "1-0"]
[Board "78"]
[TimeControl "180+1"]
[WhiteFideId "9915834"]
[BlackFideId "4187237"]
[WhiteElo "2198"]
[BlackElo "2084"]
[WhiteTeam "SRI"]
[BlackTeam "FID"]
[WhiteClock "0:00:11"]
[BlackClock "0:00:00"]

1. Nf3 {[%clk 0:03:00]}  Nf6 {[%clk 0:02:58]} 2. c4 {[%clk 0:03:01]}  g6 {[%clk 0:02:57]} 3. g3 {[%clk 0:02:59]}  c6 {[%clk 0:02:55]} 4. Bg2 {[%clk 0:02:57]}  d5 {[%clk 0:02:56]} 5. O-O {[%clk 0:02:54]}  Bg7 {[%clk 0:02:56]} 6. cxd5 {[%clk 0:02:51]}  cxd5 {[%clk 0:02:56]} 7. d4 {[%clk 0:02:51]}  O-O {[%clk 0:02:55]} 8. Nc3 {[%clk 0:02:52]}  Bf5 {[%clk 0:02:54]} 9. Qb3 {[%clk 0:02:47]}  Nc6 {[%clk 0:02:44]} 10. Qxb7 {[%clk 0:02:43]}  Na5 {[%clk 0:02:32]} 11. Qb5 {[%clk 0:02:35]}  Rb8 {[%clk 0:02:26]} 12. Qa4 {[%clk 0:02:35]}  Ne4 {[%clk 0:02:19]} 13. Ne5 {[%clk 0:02:23]}  Nxc3 {[%clk 0:01:14]} 14. bxc3 {[%clk 0:02:23]}  Qc7 {[%clk 0:01:14]} 15. Bf4 {[%clk 0:02:12]}  g5 {[%clk 0:01:03]} 16. Bxg5 {[%clk 0:01:39]}  f6 {[%clk 0:01:02]} 17. Bxd5+ {[%clk 0:00:59]}  e6 {[%clk 0:01:02]} 18. Bg2 {[%clk 0:00:47]}  fxg5 {[%clk 0:00:54]} 19. Nd7 {[%clk 0:00:47]}  Bc2 {[%clk 0:00:42]} 20. Qxc2 {[%clk 0:00:47]}  Qxd7 {[%clk 0:00:42]} 21. Rab1 {[%clk 0:00:48]}  Nc4 {[%clk 0:00:38]} 22. Qd3 {[%clk 0:00:43]}  Qc7 {[%clk 0:00:28]} 23. Bh3 {[%clk 0:00:36]}  Qc6 {[%clk 0:00:18]} 24. e4 {[%clk 0:00:22]}  Kh8 {[%clk 0:00:15]} 25. d5 {[%clk 0:00:17]}  exd5 {[%clk 0:00:16]} 26. exd5 {[%clk 0:00:18]}  Qc5 {[%clk 0:00:15]} 27. Rxb8 {[%clk 0:00:15]}  Rxb8 {[%clk 0:00:16]} 28. Bg2 {[%clk 0:00:13]}  Rb2 {[%clk 0:00:14]} 29. Qe4 {[%clk 0:00:12]}  Nd6 {[%clk 0:00:14]} 30. Qe6 {[%clk 0:00:12]}  h6 {[%clk 0:00:11]} 31. h3 {[%clk 0:00:12]}  Qc7 {[%clk 0:00:07]} 32. c4 {[%clk 0:00:11]}  Nxc4 {[%clk 0:00:05]} 33. Rc1 {[%clk 0:00:11]}  Qb6 {[%clk 0:00:03]} 34. Qe8+ {[%clk 0:00:10]}  Kh7 {[%clk 0:00:03]} 35. Qe4+ {[%clk 0:00:10]}  Kh8 {[%clk 0:00:02]} 36. Rxc4 {[%clk 0:00:10]}  Qxf2+ {[%clk 0:00:00]} 37. Kh2 {[%clk 0:00:11]} 1-0

[Event "December 19 Early 2023"]
[Site "https://www.chess.com"]
[Date "2023.12.19"]
[Round "4"]
[White "Harshavardhan G B"]
[Black "Vakhidov, Shahzod"]
[Result "1-0"]
[Board "79"]
[TimeControl "180+1"]
[WhiteFideId "25059009"]
[BlackFideId "14205270"]
[WhiteElo "2290"]
[BlackElo "2212"]
[WhiteTeam "IND"]
[BlackTeam "UZB"]
[WhiteClock "0:00:42"]
[BlackClock "0:00:11"]

1. d4 {[%clk 0:03:00]}  Nf6 {[%clk 0:03:00]} 2. c4 {[%clk 0:03:00]}  c5 {[%clk 0:03:00]} 3. d5 {[%clk 0:03:00]}  b5 {[%clk 0:03:01]} 4. Qc2 {[%clk 0:02:59]}  bxc4 {[%clk 0:03:00]} 5. e4 {[%clk 0:02:57]}  e6 {[%clk 0:03:00]} 6. Bxc4 {[%clk 0:02:55]}  exd5 {[%clk 0:03:00]} 7. exd5 {[%clk 0:02:56]}  d6 {[%clk 0:03:01]} 8. Ne2 {[%clk 0:02:56]}  Be7 {[%clk 0:03:01]} 9. O-O {[%clk 0:02:56]}  O-O {[%clk 0:03:02]} 10. Nbc3 {[%clk 0:02:56]}  Nbd7 {[%clk 0:03:01]} 11. Ng3 {[%clk 0:02:54]}  Nb6 {[%clk 0:03:00]} 12. b3 {[%clk 0:02:54]}  Nxc4 {[%clk 0:02:47]} 13. bxc4 {[%clk 0:02:53]}  Nd7 {[%clk 0:02:46]} 14. a4 {[%clk 0:02:45]}  Ne5 {[%clk 0:02:40]} 15. Nb5 {[%clk 0:02:42]}  a6 {[%clk 0:02:37]} 16. Na3 {[%clk 0:02:41]}  Bf6 {[%clk 0:02:30]} 17. Bb2 {[%clk 0:02:37]}  Rb8 {[%clk 0:02:28]} 18. Rab1 {[%clk 0:02:35]}  Bd7 {[%clk 0:02:16]} 19. Bc3 {[%clk 0:02:17]}  Qe8 {[%clk 0:01:59]} 20. a5 {[%clk 0:02:13]}  Rxb1 {[%clk 0:01:52]} 21. Rxb1 {[%clk 0:02:09]}  Ng4 {[%clk 0:01:51]} 22. h3 {[%clk 0:02:03]}  Bxc3 {[%clk 0:01:19]} 23. Qxc3 {[%clk 0:02:04]}  Ne5 {[%clk 0:01:16]} 24. f4 {[%clk 0:01:22]}  Ng6 {[%clk 0:01:15]} 25. f5 {[%clk 0:01:21]}  Ne5 {[%clk 0:00:47]} 26. f6 {[%clk 0:01:20]}  g6 {[%clk 0:00:39]} 27. Qd2 {[%clk 0:01:04]}  Qd8 {[%clk 0:00:26]} 28. Rf1 {[%clk 0:01:02]}  Kh8 {[%clk 0:00:21]} 29. Qh6 {[%clk 0:00:59]}  Rg8 {[%clk 0:00:21]} 30. Ne4 {[%clk 0:00:49]}  Qf8 {[%clk 0:00:20]} 31. Qxf8 {[%clk 0:00:43]}  Rxf8 {[%clk 0:00:20]} 32. Nxd6 {[%clk 0:00:44]}  Rb8 {[%clk 0:00:20]} 33. Re1 {[%clk 0:00:44]}  Nd3 {[%clk 0:00:17]} 34. Re7 {[%clk 0:00:42]}  Ba4 {[%clk 0:00:12]} 35. Nxf7+ {[%clk 0:00:42]}  Kg8 {[%clk 0:00:11]} 36. Nh6+ {[%clk 0:00:42]} 1-0

[Event "December 19 Early 2023"]
[Site "https://www.chess.com"]
[Date "2023.12.19"]
[Round "4"]
[White "Estrada Nieto, Julian"]
[Black "Rostomyan, Mikayel"]
[Result "1-0"]
[Board "82"]
[TimeControl "180+1"]
[WhiteFideId "5101018"]
[BlackFideId "13313754"]
[WhiteElo "2161"]
[BlackElo "2059"]
[WhiteTeam "ESP"]
[BlackTeam "ARM"]
[WhiteClock "0:00:12"]
[BlackClock "0:00:07"]

1. e4 {[%clk 0:03:00]}  c5 {[%clk 0:02:59]} 2. Nf3 {[%clk 0:02:57]}  Nc6 {[%clk 0:02:59]} 3. Bb5 {[%clk 0:02:57]}  g6 {[%clk 0:02:59]} 4. Bxc6 {[%clk 0:02:57]}  bxc6 {[%clk 0:02:58]} 5. O-O {[%clk 0:02:56]}  Bg7 {[%clk 0:02:58]} 6. Re1 {[%clk 0:02:55]}  Qc7 {[%clk 0:02:58]} 7. c3 {[%clk 0:02:55]}  d6 {[%clk 0:02:58]} 8. d4 {[%clk 0:02:55]}  cxd4 {[%clk 0:02:57]} 9. cxd4 {[%clk 0:02:55]}  Nf6 {[%clk 0:02:57]} 10. Nc3 {[%clk 0:02:55]}  O-O {[%clk 0:02:57]} 11. h3 {[%clk 0:02:52]}  c5 {[%clk 0:02:56]} 12. Bg5 {[%clk 0:02:48]}  cxd4 {[%clk 0:02:51]} 13. Bxf6 {[%clk 0:02:48]}  Bxf6 {[%clk 0:02:50]} 14. Nd5 {[%clk 0:02:48]}  Qd8 {[%clk 0:02:43]} 15. Nxf6+ {[%clk 0:02:48]}  exf6 {[%clk 0:02:44]} 16. Qxd4 {[%clk 0:02:47]}  Bb7 {[%clk 0:02:38]} 17. Rad1 {[%clk 0:02:46]}  Re8 {[%clk 0:02:38]} 18. Qxd6 {[%clk 0:02:38]}  Qa5 {[%clk 0:02:32]} 19. Qxf6 {[%clk 0:02:29]}  Qxa2 {[%clk 0:02:31]} 20. Rd7 {[%clk 0:02:17]}  Bxe4 {[%clk 0:02:30]} 21. Ne5 {[%clk 0:01:57]}  Bd5 {[%clk 0:02:22]} 22. Re3 {[%clk 0:01:01]}  Be6 {[%clk 0:02:11]} 23. Rb7 {[%clk 0:00:36]}  Qd5 {[%clk 0:01:25]} 24. Rc7 {[%clk 0:00:27]}  Rec8 {[%clk 0:01:19]} 25. Re7 {[%clk 0:00:22]}  Re8 {[%clk 0:00:50]} 26. Ng4 {[%clk 0:00:17]}  Qh5 {[%clk 0:00:30]} 27. R3xe6 {[%clk 0:00:14]}  Rxe7 {[%clk 0:00:20]} 28. Rxe7 {[%clk 0:00:13]}  Rf8 {[%clk 0:00:20]} 29. Qd4 {[%clk 0:00:12]}  Qh4 {[%clk 0:00:17]} 30. Nf6+ {[%clk 0:00:12]}  Kg7 {[%clk 0:00:18]} 31. Nd7+ {[%clk 0:00:11]}  Kh6 {[%clk 0:00:17]} 32. Qe3+ {[%clk 0:00:10]}  Kg7 {[%clk 0:00:12]} 33. Nxf8 {[%clk 0:00:11]}  Kxf8 {[%clk 0:00:11]} 34. Re8+ {[%clk 0:00:11]}  Kg7 {[%clk 0:00:12]} 35. Qe5+ {[%clk 0:00:12]}  Kh6 {[%clk 0:00:12]} 36. Qe3+ {[%clk 0:00:11]}  Kg7 {[%clk 0:00:11]} 37. Re4 {[%clk 0:00:12]}  Qh5 {[%clk 0:00:09]} 38. Qd4+ {[%clk 0:00:12]}  Kf8 {[%clk 0:00:09]} 39. Qd6+ {[%clk 0:00:12]}  Kg7 {[%clk 0:00:07]} 40. Qe5+ {[%clk 0:00:12]} 1-0

[Event "December 19 Early 2023"]
[Site "https://www.chess.com"]
[Date "2023.12.19"]
[Round "4"]
[White "Asish Panda"]
[Black "Adla, Diego"]
[Result "0-1"]
[Board "83"]
[TimeControl "180+1"]
[WhiteFideId "45012458"]
[BlackFideId "100072"]
[WhiteElo "1767"]
[BlackElo "2377"]
[WhiteTeam "IND"]
[BlackTeam "ARG"]
[WhiteClock "0:00:00"]
[BlackClock "0:00:16"]

1. e4 {[%clk 0:03:00]}  e5 {[%clk 0:02:59]} 2. Nf3 {[%clk 0:03:00]}  Nc6 {[%clk 0:02:59]} 3. Bc4 {[%clk 0:03:00]}  Nf6 {[%clk 0:02:59]} 4. d3 {[%clk 0:03:00]}  Bc5 {[%clk 0:02:59]} 5. c3 {[%clk 0:03:00]}  O-O {[%clk 0:02:59]} 6. Nbd2 {[%clk 0:03:00]}  a5 {[%clk 0:02:58]} 7. Nf1 {[%clk 0:03:00]}  d5 {[%clk 0:02:57]} 8. exd5 {[%clk 0:03:00]}  Nxd5 {[%clk 0:02:57]} 9. Ng3 {[%clk 0:03:00]}  Nb6 {[%clk 0:02:55]} 10. Bb3 {[%clk 0:02:58]}  a4 {[%clk 0:02:54]} 11. Bc2 {[%clk 0:02:58]}  Bg4 {[%clk 0:02:54]} 12. h3 {[%clk 0:02:58]}  Bxf3 {[%clk 0:02:54]} 13. Qxf3 {[%clk 0:02:57]}  f5 {[%clk 0:02:54]} 14. Nxf5 {[%clk 0:02:43]}  Qd7 {[%clk 0:01:59]} 15. g4 {[%clk 0:02:31]}  g6 {[%clk 0:01:59]} 16. Nh6+ {[%clk 0:02:30]}  Kg7 {[%clk 0:01:54]} 17. Qe4 {[%clk 0:02:03]}  Rxf2 {[%clk 0:01:45]} 18. d4 {[%clk 0:01:48]}  Nxd4 {[%clk 0:01:27]} 19. cxd4 {[%clk 0:01:41]}  Bxd4 {[%clk 0:01:24]} 20. Rf1 {[%clk 0:01:15]}  Raf8 {[%clk 0:01:17]} 21. Rxf2 {[%clk 0:01:07]}  Rxf2 {[%clk 0:01:18]} 22. Bg5 {[%clk 0:00:48]}  a3 {[%clk 0:01:06]} 23. bxa3 {[%clk 0:00:20]}  Rxc2 {[%clk 0:01:00]} 24. Qxc2 {[%clk 0:00:19]}  Bxa1 {[%clk 0:00:59]} 25. Qf2 {[%clk 0:00:16]}  e4 {[%clk 0:00:53]} 26. Be3 {[%clk 0:00:10]}  Bc3+ {[%clk 0:00:49]} 27. Kf1 {[%clk 0:00:10]}  Qd1+ {[%clk 0:00:31]} 28. Kg2 {[%clk 0:00:10]}  Qf3+ {[%clk 0:00:31]} 29. Qxf3 {[%clk 0:00:10]}  exf3+ {[%clk 0:00:32]} 30. Kxf3 {[%clk 0:00:11]}  Nd5 {[%clk 0:00:32]} 31. g5 {[%clk 0:00:08]}  Nxe3 {[%clk 0:00:26]} 32. Kxe3 {[%clk 0:00:08]}  Bb2 {[%clk 0:00:27]} 33. h4 {[%clk 0:00:05]}  Bxa3 {[%clk 0:00:21]} 34. Ng4 {[%clk 0:00:06]}  Bd6 {[%clk 0:00:21]} 35. Kf3 {[%clk 0:00:04]}  Kf7 {[%clk 0:00:20]} 36. Nf6 {[%clk 0:00:04]}  h5 {[%clk 0:00:19]} 37. Ne4 {[%clk 0:00:03]}  Ke6 {[%clk 0:00:18]} 38. Nd2 {[%clk 0:00:02]}  Kd5 {[%clk 0:00:18]} 39. Nf1 {[%clk 0:00:03]}  c5 {[%clk 0:00:18]} 40. Ke3 {[%clk 0:00:02]}  c4 {[%clk 0:00:17]} 41. Kd2 {[%clk 0:00:03]}  Bf4+ {[%clk 0:00:16]} 42. Kc3 {[%clk 0:00:03]}  b5 {[%clk 0:00:16]} 43. Kb4 {[%clk 0:00:02]}  Kc6 {[%clk 0:00:16]} 44. a4 {[%clk 0:00:02]}  bxa4 {[%clk 0:00:16]} 45. Kc3 {[%clk 0:00:00]}  Kc5 {[%clk 0:00:16]} 0-1

[Event "December 19 Early 2023"]
[Site "https://www.chess.com"]
[Date "2023.12.19"]
[Round "4"]
[White "Krysa, Leandro"]
[Black "Cattaneo, Marco"]
[Result "1-0"]
[Board "84"]
[TimeControl "180+1"]
[WhiteFideId "116807"]
[BlackFideId "878332"]
[WhiteElo "2495"]
[BlackElo "2186"]
[WhiteTeam "ARG"]
[BlackTeam "ITA"]
[WhiteClock "0:01:20"]
[BlackClock "0:00:32"]

1. e4 {[%clk 0:03:00]}  g6 {[%clk 0:03:00]} 2. d4 {[%clk 0:03:00]}  Bg7 {[%clk 0:03:00]} 3. Bc4 {[%clk 0:02:59]}  c5 {[%clk 0:02:21]} 4. d5 {[%clk 0:02:56]}  d6 {[%clk 0:02:17]} 5. a4 {[%clk 0:02:55]}  Nf6 {[%clk 0:02:14]} 6. Nc3 {[%clk 0:02:55]}  O-O {[%clk 0:02:13]} 7. Nf3 {[%clk 0:02:55]}  Na6 {[%clk 0:02:13]} 8. O-O {[%clk 0:02:54]}  Nc7 {[%clk 0:02:12]} 9. h3 {[%clk 0:02:53]}  Rb8 {[%clk 0:02:05]} 10. Re1 {[%clk 0:02:52]}  Nd7 {[%clk 0:02:05]} 11. Bf4 {[%clk 0:02:48]}  Ne5 {[%clk 0:01:57]} 12. Nxe5 {[%clk 0:02:32]}  dxe5 {[%clk 0:01:58]} 13. Be3 {[%clk 0:02:32]}  b6 {[%clk 0:01:58]} 14. Nb5 {[%clk 0:02:28]}  Ne8 {[%clk 0:01:58]} 15. Nxa7 {[%clk 0:02:28]}  Bb7 {[%clk 0:01:57]} 16. Nc6 {[%clk 0:02:27]}  Bxc6 {[%clk 0:01:56]} 17. dxc6 {[%clk 0:02:26]}  Nd6 {[%clk 0:01:55]} 18. Bb5 {[%clk 0:02:11]}  Nxe4 {[%clk 0:01:48]} 19. Qxd8 {[%clk 0:01:53]}  Rbxd8 {[%clk 0:01:49]} 20. Ba6 {[%clk 0:01:41]}  Ra8 {[%clk 0:01:49]} 21. Bb7 {[%clk 0:01:36]}  Ra7 {[%clk 0:01:24]} 22. b4 {[%clk 0:01:31]}  Rb8 {[%clk 0:00:41]} 23. a5 {[%clk 0:01:25]}  bxa5 {[%clk 0:00:40]} 24. Rxa5 {[%clk 0:01:21]}  Rxa5 {[%clk 0:00:39]} 25. bxa5 {[%clk 0:01:21]}  Nd6 {[%clk 0:00:32]} 26. a6 {[%clk 0:01:20]} 1-0